bitfinex-derivatives/quotes_ETHF0:USTF0_20250629
["timestamp","ask_amount","ask_price","bid_price","bid_amount"]
[1751178497325,2.89974083,2434.5,2434.4,43.25318947]
[1751178499620,2.07851083,2434.5,2434.4,43.25318947]
[1751178501331,2.89974083,2434.5,2434.4,43.25318947]
[1751178501530,2.89974083,2434.5,2434.4,43.25321947]
[1751178501729,2.89974083,2434.5,2434.4,42.43194947]
[1751178503134,2.89974083,2434.5,2434.4,43.25321947]
[1751178503327,2.89974083,2434.5,2434.4,1.63194947]
[1751178503838,2.89974083,2434.5,2434.4,43.25321947]
[1751178506343,2.89974083,2434.5,2434.4,42.43194947]
[1751178507042,2.89974083,2434.5,2434.4,1.63194947]
[1751178507234,0.82127,2434.4,2434.3,2.45323947]
[1751178507434,1.52907,2434.4,2434.3,42.43194947]
[1751178508041,1.52907,2434.4,2434.3,43.25324947]
[1751178508337,1.52907,2434.4,2434.3,42.43194947]
[1751178510443,7.80907,2434.4,2434.3,42.43194947]
[1751178511243,7.80907,2434.4,2434.3,40.8]
[1751178511640,0.8213,2434.3,2434.2,1.63194947]
[1751178511942,2.89981083,2434.3,2434.2,1.63194947]
[1751178512341,0.82133,2434.2,2434.1,43.25331947]
[1751178516642,0.82133,2434.2,2434.1,41.62137]
[1751178517746,0.82133,2434.2,2434.1,43.01177]
[1751178523145,2.07851083,2434.3,2434.2,0.82133]
[1751178523346,2.89981083,2434.3,2434.2,1.50793]
[1751178526450,2.89981083,2434.3,2434.2,2.92503]
[1751178527944,2.89981083,2434.3,2434.2,2.1037]
[1751178528145,2.89981083,2434.3,2434.2,2.92503]
[1751178530751,2.89981083,2434.3,2434.2,2.1037]
[1751178531253,2.89981083,2434.3,2434.2,2.92503]
[1751178531560,2.89981083,2434.3,2434.2,0.82133]
[1751178531853,2.89981083,2434.3,2433.9,2.35264947]
[1751178531854,0.82135,2434.2,2434.1,0.82135]
[1751178532751,0.82135,2434.2,2434.1,2.18955]
[1751178534153,0.82137,2434.1,2434.0,42.34487]
[1751178534349,2.89988083,2434.1,2434.0,42.34487]
[1751178534851,2.89988083,2434.1,2434.0,43.70257]
[1751178535047,0.82136,2434.2,2434.1,0.82134]
[1751178535244,2.89987083,2434.2,2434.1,0.82134]
[1751178542665,0.82137,2434.1,2434.0,4.53453947]
[1751178542964,1.48347,2434.1,2434.0,4.53453947]
[1751178543559,7.75647,2434.1,2434.0,4.53453947]
[1751178544564,6.273,2434.1,2434.0,4.53453947]
[1751178548566,7.09437,2434.1,2434.0,4.53453947]
[1751178558579,7.09437,2434.1,2434.0,45.33453947]
[1751178559981,7.09437,2434.1,2434.0,4.53453947]
[1751178560176,6.273,2434.1,2434.0,4.53453947]
[1751178560778,7.09437,2434.1,2434.0,4.53453947]
[1751178566689,7.09437,2434.1,2434.0,3.17683947]
[1751178574100,7.09437,2434.1,2434.0,1.63194947]
[1751178574499,0.8214,2434.0,2433.9,43.25336947]
[1751178574698,3.60181083,2434.0,2433.9,43.25336947]
[1751178575194,2.78041083,2434.0,2433.9,43.25336947]
[1751178575889,3.60181083,2434.0,2433.9,43.25336947]
[1751178577201,2.78041083,2434.0,2433.9,43.25336947]
[1751178579406,3.60181083,2434.0,2433.9,43.25336947]
[1751178579894,3.60181083,2434.0,2433.9,44.71346947]
[1751178581503,2.78041083,2434.0,2433.9,44.71346947]
[1751178584311,3.60181083,2434.0,2433.9,44.71346947]
[1751178585208,2.78041083,2434.0,2433.9,44.71346947]
[1751178588513,3.60181083,2434.0,2433.9,44.71346947]
[1751178591205,5.68032166,2434.0,2433.9,42.43194947]
[1751178591409,0.82144,2433.9,2433.8,1.63194947]
[1751178591610,4.02924,2433.9,2433.8,1.63194947]
[1751178591811,4.02924,2433.9,2433.8,42.43194947]
[1751178593713,4.02924,2433.9,2433.8,1.63194947]
[1751178593913,4.02924,2433.9,2433.8,2.45341947]
[1751178597114,4.02924,2433.9,2433.8,1.63194947]
[1751178598219,0.82144,2433.9,2433.8,1.63194947]
[1751178598516,4.02924,2433.9,2433.8,1.63194947]
[1751178604023,4.02924,2433.9,2433.8,2.45341947]
[1751178606026,4.02924,2433.9,2433.8,1.63194947]
[1751178606222,4.02924,2433.9,2433.8,2.45341947]
[1751178606422,4.02924,2433.9,2433.8,1.63194947]
[1751178607026,0.82147,2433.8,2433.7,41.62148]
[1751178607230,2.89998083,2433.8,2433.7,41.62148]
[1751178608526,2.89998083,2433.8,2433.7,43.03418]
[1751178617238,2.89998083,2433.8,2433.7,2.23418]
[1751178621039,3.9097,2434.0,2433.9,0.82144]
[1751178621340,0.82135,2434.2,2434.0,0.82137]
[1751178621541,2.89986083,2434.2,2434.1,2.0772]
[1751178622539,2.89986083,2434.2,2434.1,0.715]
[1751178622934,0.8214,2434.1,2433.9,0.82141]
[1751178623134,2.89991083,2434.0,2433.9,2.94441]
[1751178623537,2.07851083,2434.0,2433.9,2.94441]
[1751178624137,2.89991083,2434.0,2433.9,2.123]
[1751178625242,2.07851083,2434.0,2433.9,2.94444]
[1751178627644,2.89991083,2434.0,2433.9,2.94444]
[1751178628046,2.07851083,2434.0,2433.9,2.94444]
[1751178632646,2.89991083,2434.0,2433.9,2.94444]
[1751178632846,2.89991083,2434.0,2433.9,0.82144]
[1751178633247,2.89991083,2434.0,2433.8,2.45339947]
[1751178633248,0.82144,2433.9,2433.8,2.45339947]
[1751178637255,7.08544,2433.9,2433.8,1.63194947]
[1751178637642,0.82147,2433.8,2433.7,2.45344947]
[1751178637854,3.56928083,2433.8,2433.7,2.45344947]
[1751178639152,3.56928083,2433.8,2433.7,1.63194947]
[1751178639542,3.56928083,2433.8,2433.7,2.45344947]
[1751178653666,1.49077,2433.8,2433.7,2.45344947]
[1751178653968,3.2078,2434.0,2433.9,0.82144]
[1751178654170,12.37263083,2434.3,2433.9,2.07851083]
[1751178654470,3.2078,2434.3,2434.2,0.82133]
[1751178654964,3.2078,2434.3,2434.2,2.90563]
[1751178655364,6.9393,2434.4,2434.3,0.8213]
[1751178655571,6.9393,2434.4,2434.3,2.1837]
[1751178666382,7.76057,2434.4,2434.3,2.1837]
[1751178668289,6.9393,2434.4,2434.3,2.1837]
[1751178668490,7.76057,2434.4,2434.3,2.1837]
[1751178668790,6.9393,2434.4,2434.3,0.8213]
[1751178669084,7.76057,2434.4,2434.2,1.5432]
[1751178669292,2.07851083,2434.3,2434.2,1.5432]
[1751178670189,2.89981083,2434.3,2434.2,1.5432]
[1751178670390,2.07851083,2434.3,2434.2,1.5432]
[1751178677387,2.89981083,2434.3,2434.0,3.08354947]
[1751178677593,0.82135,2434.2,2434.1,0.82136]
[1751178677796,2.89986083,2434.2,2434.1,0.82136]
[1751178681000,0.82137,2434.1,2434.0,1.63194947]
[1751178681198,1.3757,2434.1,2433.8,27.14992421]
[1751178681500,2.89995083,2433.9,2433.8,2.44792421]
[1751178681899,2.89995083,2433.9,2433.8,3.26939421]
[1751178682697,2.89995083,2433.9,2433.8,0.82147]
[1751178683002,2.07851083,2433.9,2433.8,2.46028195]
[1751178688207,2.89995083,2433.9,2433.8,2.46028195]
[1751178688905,2.07851083,2433.9,2433.8,2.46028195]
[1751178689300,2.07851083,2433.9,2433.8,0.82147]
[1751178704111,2.89995083,2433.9,2433.8,0.82147]
[1751178704312,2.89995083,2433.9,2433.8,1.63881195]
[1751178704713,2.89995083,2433.9,2433.8,2.46028195]
[1751178708218,2.07851083,2433.9,2433.8,2.46028195]
[1751178712218,2.89995083,2433.9,2433.8,2.46028195]
[1751178712414,2.07851083,2433.9,2433.8,0.82147]
[1751178714715,2.07851083,2433.9,2433.8,3.26939421]
[1751178715721,2.07851083,2433.9,2433.8,0.82147]
[1751178721723,2.07851083,2433.9,2433.8,3.26939421]
[1751178721923,2.07851083,2433.9,2433.8,0.82147]
[1751178732732,2.07851083,2433.9,2433.7,3.26939421]
[1751178733032,1.49327,2433.8,2433.7,3.26942421]
[1751178733233,1.49327,2433.8,2433.7,0.8215]
[1751178734634,4.70107,2433.8,2433.7,2.46233239]
[1751178735327,4.70107,2433.8,2433.7,1.64083239]
[1751178736335,4.70107,2433.8,2433.7,2.46233239]
[1751178736635,4.70107,2433.8,2433.7,1.64083239]
[1751178736934,4.70107,2433.8,2433.6,2.46234239]
[1751178736935,0.8215,2433.7,2433.6,2.46234239]
[1751178737232,2.90001083,2433.7,2433.6,2.46234239]
[1751178737534,2.90001083,2433.7,2433.5,43.26237239]
[1751178737535,0.82154,2433.6,2433.5,43.26237239]
[1751178740233,0.82154,2433.6,2433.5,42.44083239]
[1751178740438,0.82154,2433.6,2433.5,41.62157]
[1751178740736,0.82154,2433.6,2433.5,0.82157]
[1751178743343,0.82157,2433.5,2433.4,43.26241239]
[1751178743544,3.56228083,2433.5,2433.4,43.26241239]
[1751178744146,3.56228083,2433.5,2433.4,2.46241239]
[1751178744342,3.56228083,2433.5,2433.4,0.82158]
[1751178746148,0.8216,2433.4,2433.3,43.12923239]
[1751178746344,0.8216,2433.4,2433.3,42.44083239]
[1751178747350,0.82164,2433.3,2433.2,2.46248239]
[1751178747550,2.90015083,2433.3,2433.2,2.46248239]
[1751178747849,2.90015083,2433.3,2433.2,41.62165]
[1751178748247,2.90015083,2433.3,2433.2,40.8]
[1751178748846,2.90015083,2433.3,2433.2,41.62167]
[1751178749046,0.82167,2433.2,2433.1,1.51908]
[1751178749247,1.50647,2433.2,2433.1,3.96700421]
[1751178749550,1.50647,2433.2,2433.1,43.95701005]
[1751178749750,0.6848,2433.2,2433.1,43.95701005]
[1751178749946,0.6848,2433.2,2433.1,45.30191005]
[1751178754249,0.6848,2433.2,2433.1,43.66398]
[1751178755753,2.90017083,2433.3,2433.2,0.82167]
[1751178765165,9.16617083,2433.3,2433.2,2.18837]
[1751178766268,9.16617083,2433.3,2433.2,3.82630005]
[1751178767369,9.16617083,2433.3,2433.2,3.00463005]
[1751178767963,9.16617083,2433.3,2433.2,3.82630005]
[1751178768165,9.16617083,2433.3,2433.2,3.00463005]
[1751178768669,9.16617083,2433.3,2433.2,3.82630005]
[1751178768874,9.16617083,2433.3,2433.2,1.63793005]
[1751178769277,0.82167,2433.2,2433.1,43.95701005]
[1751178769470,1.55537,2433.2,2433.1,43.95701005]
[1751178769874,0.7337,2433.2,2433.1,43.95701005]
[1751178770068,9.16617083,2433.3,2433.2,0.82167]
[1751178770069,7.08766,2433.3,2433.2,0.82167]
[1751178770275,9.16617083,2433.3,2433.2,0.82167]
[1751178770778,2.90017083,2433.3,2433.2,0.82167]
[1751178770980,9.16617083,2433.3,2433.2,2.21887]
[1751178771379,8.34451083,2433.3,2433.2,2.21887]
[1751178772479,9.16615083,2433.3,2433.2,2.21887]
[1751178773580,9.16615083,2433.3,2433.2,0.82167]
[1751178777283,9.16615083,2433.3,2433.2,2.45960005]
[1751178777580,8.34451083,2433.3,2433.2,2.45960005]
[1751178777980,9.16615083,2433.3,2433.2,2.45960005]
[1751178780486,6.266,2433.3,2433.2,2.45960005]
[1751178780688,8.34451083,2433.3,2433.2,2.45960005]
[1751178781175,9.16615083,2433.3,2433.2,2.45960005]
[1751178781380,8.34451083,2433.3,2433.2,2.45960005]
[1751178782484,9.16615083,2433.3,2433.2,2.45960005]
[1751178782782,8.34451083,2433.3,2433.2,2.45960005]
[1751178783086,9.16615083,2433.3,2433.2,2.45960005]
[1751178785087,9.16615083,2433.3,2433.2,0.82167]
[1751178785287,9.16615083,2433.3,2433.2,2.45960005]
[1751178785482,8.34451083,2433.3,2433.2,2.45960005]
[1751178786187,9.16615083,2433.3,2433.2,2.45960005]
[1751178786687,2.90015083,2433.3,2433.2,2.45960005]
[1751178789489,2.07851083,2433.3,2433.2,2.45960005]
[1751178790290,2.90015083,2433.3,2433.2,2.45960005]
[1751178800093,0.82164,2433.3,2433.2,2.45960005]
[1751178800294,2.90015083,2433.3,2433.2,2.45960005]
[1751178800691,3.12525141,2433.7,2433.6,0.82154]
[1751178800889,2.46075141,2433.7,2433.6,0.82154]
[1751178801296,2.46075141,2433.7,2433.6,2.21944]
[1751178801997,3.28225141,2433.7,2433.6,2.21944]
[1751178802193,0.8215,2433.7,2433.6,2.21944]
[1751178802390,0.8215,2433.7,2433.6,1.3979]
[1751178802590,0.8215,2433.7,2433.6,2.21944]
[1751178802988,4.02929,2433.8,2433.7,0.8215]
[1751178803196,5.28631083,2433.8,2433.7,0.8215]
[1751178803398,5.28631083,2433.8,2433.7,1.5417]
[1751178808703,2.07851083,2433.8,2433.7,1.5417]
[1751178810202,2.07851083,2433.9,2433.8,0.82147]
[1751178810403,2.07851083,2433.9,2433.8,2.19617]
[1751178822009,2.07851083,2433.9,2433.8,0.82147]
[1751178834219,2.07851083,2433.9,2433.8,2.45940005]
[1751178834615,2.07851083,2433.9,2433.8,0.82147]
[1751178835216,2.07851083,2433.9,2433.8,2.45940005]
[1751178840427,3.918,2434.1,2434.0,0.8214]
[1751178841931,3.918,2434.1,2434.0,1.4916]
[1751178842727,3.2078,2434.1,2434.0,1.4916]
[1751178843334,3.2078,2434.1,2434.0,2.9305]
[1751178844329,3.2078,2434.1,2434.0,4.56843005]
[1751178848239,5.28631083,2434.2,2434.1,0.82137]
[1751178848942,2.07851083,2434.2,2434.1,0.82137]
[1751178850239,2.07851083,2434.2,2434.0,3.74703005]
[1751178850240,2.77901083,2434.3,2434.2,0.82133]
[1751178850542,6.01361083,2434.5,2434.4,0.82127]
[1751178850742,6.73311083,2434.5,2434.4,0.82127]
[1751178851238,3.2078,2434.5,2434.4,2.89978083]
[1751178851543,3.2078,2434.5,2434.4,45.05048083]
[1751178851835,3.2078,2434.5,2434.4,46.68841088]
[1751178852234,3.2078,2434.5,2434.4,45.05048083]
[1751178852646,9.05961083,2434.8,2434.7,0.82117]
[1751178860450,2.79661083,2434.8,2434.7,0.82117]
[1751178862456,2.79661083,2434.8,2434.7,2.25517]
[1751178866756,0.7181,2434.8,2434.7,2.25517]
[1751178867262,0.7181,2434.8,2434.7,43.05517]
[1751178867959,2.79661083,2434.8,2434.7,41.62117]
[1751178874270,0.7181,2434.8,2434.7,41.62117]
[1751178874468,2.79661083,2434.8,2434.7,41.62117]
[1751178879170,2.79661083,2434.8,2434.7,43.25910005]
[1751178880668,4.23301083,2434.8,2434.7,43.25910005]
[1751178884672,5.05414083,2434.8,2434.7,43.25910005]
[1751178884972,0.82117,2434.7,2434.6,1.63793005]
[1751178885172,2.16597,2434.7,2434.6,1.63793005]
[1751178886277,2.16597,2434.7,2434.6,2.45911005]
[1751178887382,2.16597,2434.7,2434.6,1.63793005]
[1751178888369,5.37377,2434.7,2434.6,1.63793005]
[1751178888574,7.45228083,2434.7,2434.6,1.63793005]
[1751178888777,0.8212,2434.6,2434.5,1.63793005]
[1751178888978,4.93981083,2434.6,2434.5,1.63793005]
[1751178889280,0.82127,2434.4,2434.3,43.25921005]
[1751178889480,0.82127,2434.4,2434.3,2.45921005]
[1751178891085,0.82127,2434.4,2434.3,0.82128]
[1751178892287,2.89978083,2434.4,2434.3,0.82128]
[1751178892782,2.07851083,2434.4,2434.3,0.82128]
[1751178894279,8.34051083,2434.6,2434.5,0.82123]
[1751178894789,11.54831083,2434.7,2434.6,0.8212]
[1751178895084,9.01331083,2434.9,2434.8,0.82113]
[1751178898687,9.90341063,2434.9,2434.8,0.82113]
[1751178907999,3.2078,2435.0,2434.9,0.8211]
[1751178908205,12.43841063,2435.0,2434.9,0.8211]
[1751178911202,12.44741063,2435.0,2434.9,0.8211]
[1751178913811,3.2078,2435.0,2434.9,0.8211]
[1751178920716,3.8751,2435.0,2434.9,0.8211]
[1751178922323,4.69618,2435.0,2434.9,0.8211]
[1751178922822,6.77425433,2435.0,2434.9,0.8211]
[1751178923023,5.95317433,2435.0,2434.9,0.8211]
[1751178923927,6.77424433,2435.0,2434.8,0.82111]
[1751178924128,2.07807433,2434.9,2434.8,0.82111]
[1751178924528,2.07807433,2434.9,2434.8,41.62111]
[1751178924729,2.96891212,2434.9,2434.8,41.62111]
[1751178928830,0.82113,2434.8,2434.7,2.45907005]
[1751178929033,1.55413,2434.8,2434.7,2.45907005]
[1751178930126,1.55413,2434.8,2434.7,0.82114]
[1751178930331,0.733,2434.8,2434.7,0.82114]
[1751178931338,1.55413,2434.8,2434.7,0.82114]
[1751178939246,1.55413,2434.8,2434.7,2.45907005]
[1751178946557,3.63247376,2434.8,2434.7,1.63793005]
[1751178947057,3.63247376,2434.8,2434.7,2.45910005]
[1751178951456,2.053,2434.7,2434.4,0.01305629]
[1751178951758,5.28614376,2434.5,2434.2,0.82133]
[1751178952062,0.82128,2434.4,2434.3,2.0893]
[1751178952260,3.61352376,2434.4,2434.3,2.0893]
[1751178952461,3.61352376,2434.4,2434.3,0.665]
[1751178954859,4.56021861,2434.4,2434.3,0.665]
[1751178956862,4.56021861,2434.4,2434.3,2.0983]
[1751178958963,3.84631861,2434.4,2434.3,2.0983]
[1751178960466,0.94669485,2434.4,2434.3,4.99794376]
[1751178960668,0.94669485,2434.4,2434.3,29.79894376]
[1751178961370,0.94669485,2434.4,2434.3,38.00674376]
[1751178961565,6.10730376,2434.8,2434.7,0.82117]
[1751178961760,4.15346331,2434.8,2434.7,0.82117]
[1751178962169,4.15346331,2434.8,2434.7,3.64287]
[1751178963975,4.97459331,2434.8,2434.7,2.8217]
[1751178964169,7.94309764,2434.8,2434.7,2.8217]
[1751178964568,7.94309764,2434.8,2434.7,3.64287]
[1751178965275,7.12196764,2434.8,2434.7,3.64287]
[1751178965471,4.15346331,2434.8,2434.7,3.64287]
[1751178966969,0.94566331,2434.8,2434.7,3.64287]
[1751178972077,3.78959433,2435.0,2434.8,0.82111]
[1751178972279,0.9451705,2434.9,2434.8,0.82111]
[1751178978283,3.78959433,2435.0,2434.8,0.82111]
[1751178979784,3.78959433,2435.0,2434.7,2.8217]
[1751178979988,3.78959433,2435.0,2434.9,0.8211]
[1751178980188,4.73470825,2435.0,2434.9,0.8211]
[1751178981890,3.91361825,2435.0,2434.9,0.8211]
[1751178982684,3.02288647,2435.0,2434.9,0.8211]
[1751178983089,2.07777255,2435.0,2434.9,0.8211]
[1751178983283,3.0226428,2435.0,2434.9,0.8211]
[1751178986188,3.8437128,2435.0,2434.9,0.8211]
[1751178986385,3.8437128,2435.0,2434.7,2.8217]
[1751178986585,2.89884255,2435.0,2434.7,2.8217]
[1751178986788,2.89884255,2435.0,2434.9,0.8211]
[1751178987091,3.84333919,2435.0,2434.9,0.8211]
[1751178988489,3.84333919,2435.0,2434.8,0.82111]
[1751178988789,2.07777255,2434.9,2434.8,0.82111]
[1751179002197,0.82107,2435.0,2434.9,0.8211]
[1751179002404,2.07777255,2435.0,2434.9,0.8211]
[1751179004907,0.7029,2435.1,2435.0,0.82106]
[1751179005206,3.2078,2435.2,2435.1,0.82103]
[1751179005894,3.2078,2435.2,2435.1,2.21183]
[1751179006702,5.28557255,2435.2,2435.1,43.01183]
[1751179007707,2.07777255,2435.2,2435.1,43.01183]
[1751179009611,0.7146,2435.4,2435.1,43.01183]
[1751179009612,0.7146,2435.4,2435.3,0.82096]
[1751179009811,2.79237255,2435.4,2435.3,0.82096]
[1751179010403,2.79237255,2435.4,2435.3,1.55256]
[1751179013612,0.7146,2435.4,2435.3,1.55256]
[1751179013812,2.79237255,2435.4,2435.3,1.55256]
[1751179021620,3.73830999,2435.4,2435.3,1.55256]
[1751179025213,3.73830999,2435.4,2435.3,0.82096]
[1751179028120,3.73830999,2435.4,2435.1,40.8]
[1751179028422,2.43460744,2435.3,2435.2,25.56698]
[1751179029325,1.61363744,2435.3,2435.2,25.56698]
[1751179029621,3.69140999,2435.3,2435.2,25.56698]
[1751179032425,4.51236999,2435.3,2435.2,25.56698]
[1751179036628,3.69140999,2435.3,2435.2,25.56698]
[1751179038339,1.76689744,2435.3,2435.2,25.56698]
[1751179038642,3.02370999,2435.3,2435.2,27.02638]
[1751179052442,3.02370999,2435.3,2435.2,25.56698]
[1751179077573,3.02370999,2435.3,2435.2,26.97938]
[1751179089181,3.02370999,2435.3,2435.2,67.77938]
[1751179091274,0.94593744,2435.3,2435.2,67.77938]
[1751179101089,1.62003744,2435.3,2435.2,66.36698]
[1751179105992,1.62003744,2435.3,2435.2,41.62098]
[1751179106183,1.62003744,2435.3,2435.2,66.33298]
[1751179111196,1.62003744,2435.3,2435.2,41.62098]
[1751179111496,1.62003744,2435.3,2435.2,66.33298]
[1751179113095,2.44099744,2435.3,2435.2,66.33298]
[1751179113393,1.62003744,2435.3,2435.2,66.33298]
[1751179120006,2.44099744,2435.3,2435.2,66.33298]
[1751179120306,1.62003744,2435.3,2435.2,66.33298]
[1751179129315,2.44099744,2435.3,2435.2,66.33298]
[1751179131011,1.62003744,2435.3,2435.2,66.33298]
[1751179132710,2.44099744,2435.3,2435.2,66.33298]
[1751179132912,1.62003744,2435.3,2435.2,66.33298]
[1751179135216,2.44099744,2435.3,2435.2,66.33298]
[1751179135414,1.62003744,2435.3,2435.2,66.33298]
[1751179136215,2.44099744,2435.3,2435.2,41.62098]
[1751179136407,2.44099744,2435.3,2435.2,66.33198]
[1751179136607,1.49506,2435.3,2435.2,66.33198]
[1751179137417,2.44349839,2435.3,2435.2,66.33198]
[1751179137713,1.62253839,2435.3,2435.2,66.33198]
[1751179138708,1.62253839,2435.3,2435.2,25.53198]
[1751179139614,1.62253839,2435.3,2435.2,26.21598]
[1751179140017,1.62253839,2435.3,2435.2,27.54288]
[1751179140515,2.44349839,2435.3,2435.2,27.54288]
[1751179145014,1.62253839,2435.3,2435.2,27.54288]
[1751179146414,0.94843839,2435.3,2435.2,27.54288]
[1751179151416,0.94843839,2435.3,2435.2,29.62065255]
[1751179154630,0.94843839,2435.3,2435.2,70.42065255]
[1751179154831,0.94843839,2435.3,2435.2,68.34288]
[1751179155135,3.02621094,2435.3,2435.2,68.34288]
[1751179158230,3.84717094,2435.3,2435.2,42.8109]
[1751179158534,3.84717094,2435.3,2435.2,66.193]
[1751179158729,3.02621094,2435.3,2435.2,67.014]
[1751179159129,3.02628011,2435.3,2435.2,67.014]
[1751179160433,3.84724011,2435.3,2435.2,67.014]
[1751179160630,3.84724011,2435.3,2435.2,66.33]
[1751179162034,3.84724011,2435.3,2435.2,41.621]
[1751179162236,3.84724011,2435.3,2435.2,66.33]
[1751179170239,3.84724011,2435.3,2435.2,41.621]
[1751179170441,3.84724011,2435.3,2435.2,66.329]
[1751179171642,3.84575093,2435.3,2435.2,66.329]
[1751179173441,3.84575093,2435.3,2435.2,41.621]
[1751179173641,3.84575093,2435.3,2435.2,66.329]
[1751179174043,3.84575093,2435.3,2435.2,41.621]
[1751179174640,3.84575093,2435.3,2435.2,66.329]
[1751179174843,3.84575093,2435.3,2435.2,41.621]
[1751179175046,3.84575093,2435.3,2435.2,66.329]
[1751179177047,3.84575093,2435.3,2435.2,25.529]
[1751179184560,3.84575093,2435.3,2435.2,0.821]
[1751179184763,3.84575093,2435.3,2435.2,1.5323]
[1751179187861,3.02479093,2435.3,2435.2,1.5323]
[1751179188260,0.94701838,2435.3,2435.2,2.9556]
[1751179188457,0.94701838,2435.3,2435.2,3.6237]
[1751179192971,0.94701838,2435.3,2435.2,44.4237]
[1751179196371,0.94701838,2435.3,2435.2,3.6237]
[1751179211478,1.64181838,2435.3,2435.2,3.6237]
[1751179212478,1.64181838,2435.3,2435.2,44.4237]
[1751179212679,1.64181838,2435.3,2435.2,42.3323]
[1751179223183,1.64181838,2435.3,2435.2,43.6814]
[1751179244607,1.64181838,2435.3,2435.2,42.3323]
[1751179263217,1.64181838,2435.3,2435.2,43.7558]
[1751179271727,2.46277838,2435.3,2435.2,43.7558]
[1751179272530,1.64181838,2435.3,2435.2,43.7558]
[1751179274130,2.46277838,2435.3,2435.2,43.7558]
[1751179280940,1.64181838,2435.3,2435.2,43.7558]
[1751179281139,0.94701838,2435.3,2435.2,43.7558]
[1751179282943,1.76797838,2435.3,2435.2,43.7558]
[1751179285343,0.94701838,2435.3,2435.2,43.7558]
[1751179285944,1.76797838,2435.3,2435.2,43.7558]
[1751179287849,0.94701838,2435.3,2435.2,43.7558]
[1751179288148,1.76797838,2435.3,2435.2,43.7558]
[1751179288446,0.94701838,2435.3,2435.2,43.7558]
[1751179300250,0.94701838,2435.3,2435.2,42.3323]
[1751179300454,0.94701838,2435.3,2435.2,41.621]
[1751179300660,0.94701838,2435.3,2435.2,42.3145]
[1751179307155,1.76797838,2435.3,2435.2,42.3145]
[1751179307454,0.94701838,2435.3,2435.2,42.3145]
[1751179313359,1.76797838,2435.3,2435.2,42.3145]
[1751179314959,0.94701838,2435.3,2435.2,42.3145]
[1751179315458,1.76797838,2435.3,2435.2,42.3145]
[1751179316457,0.94701838,2435.3,2435.2,42.3145]
[1751179318562,1.76797838,2435.3,2435.2,42.3145]
[1751179319465,0.94701838,2435.3,2435.2,42.3145]
[1751179320163,1.76797838,2435.3,2435.2,42.3145]
[1751179320968,0.94701838,2435.3,2435.2,42.3145]
[1751179323279,1.76797838,2435.3,2435.2,42.3145]
[1751179323579,0.94701838,2435.3,2435.2,42.3145]
[1751179323981,1.76797838,2435.3,2435.2,42.3145]
[1751179325382,0.94701838,2435.3,2435.2,42.3145]
[1751179330783,0.94701838,2435.3,2435.2,41.621]
[1751179330972,0.94701838,2435.3,2435.2,42.2967]
[1751179333582,1.76797838,2435.3,2435.2,42.2967]
[1751179334087,0.94701838,2435.3,2435.2,42.2967]
[1751179353602,0.94701838,2435.3,2435.2,41.621]
[1751179356005,0.94701838,2435.3,2435.2,42.3373]
[1751179360807,1.66491838,2435.3,2435.2,42.3373]
[1751179363811,2.48587838,2435.3,2435.1,5.66969347]
[1751179364004,3.02479093,2435.2,2435.1,25.50503]
[1751179364308,3.84579093,2435.2,2435.1,66.30503]
[1751179364812,3.02479093,2435.2,2435.1,66.30503]
[1751179365013,3.84579093,2435.2,2435.1,66.30503]
[1751179365908,4.54019093,2435.2,2435.1,66.30503]
[1751179370214,3.71919093,2435.2,2435.1,67.01913]
[1751179371216,4.54019093,2435.2,2435.1,67.01913]
[1751179373321,3.71919093,2435.2,2435.1,67.01913]
[1751179378718,0.94701838,2435.2,2435.1,67.01913]
[1751179378911,0.94701838,2435.2,2435.1,68.46123]
[1751179379119,2.07777255,2435.4,2435.1,68.37]
[1751179379316,0.94969449,2435.3,2435.2,1.4421]
[1751179379723,0.94969449,2435.3,2435.2,2.2631]
[1751179379929,0.94969449,2435.3,2435.2,43.0631]
[1751179398645,0.94969449,2435.3,2435.2,42.2421]
[1751179398945,0.82103,2435.1,2435.0,5.66969347]
[1751179399147,2.89880255,2435.1,2435.0,30.34969347]
[1751179399339,3.84849704,2435.1,2435.0,3.2078]
[1751179399745,5.20919704,2435.1,2435.0,3.2078]
[1751179400242,4.38816704,2435.1,2434.8,44.08299347]
[1751179400544,2.89887255,2434.9,2434.8,41.6211]
[1751179400746,3.84856704,2434.9,2434.8,41.6211]
[1751179400935,4.51596704,2434.9,2434.8,41.6211]
[1751179401338,3.69486704,2434.9,2434.8,41.6211]
[1751179402045,4.51596704,2434.9,2434.8,41.6211]
[1751179406452,3.69486704,2434.9,2434.8,41.6211]
[1751179430070,3.69486704,2434.9,2434.8,43.0495]
[1751179438682,3.69486704,2434.9,2434.8,43.767]
[1751179445198,4.51596704,2434.9,2434.8,43.767]
[1751179445596,3.69486704,2434.9,2434.8,43.767]
[1751179462809,3.69486704,2434.9,2434.8,41.6211]
[1751179464613,3.69486704,2434.9,2434.8,0.8211]
[1751179466310,3.70120278,2434.9,2434.8,0.8211]
[1751179471315,3.70120278,2434.9,2434.8,1.5337]
[1751179475313,0.95603023,2434.9,2434.8,1.5337]
[1751179475520,0.95603023,2434.9,2434.8,2.9729]
[1751179475720,0.95603023,2434.9,2434.8,3.655]
[1751179476614,9.06317255,2435.3,2435.2,0.821]
[1751179476820,10.01933764,2435.3,2435.2,0.821]
[1751179479419,10.84029764,2435.3,2435.2,0.821]
[1751179479922,10.01933764,2435.3,2435.2,0.821]
[1751179481921,10.84029764,2435.3,2435.2,0.821]
[1751179485130,10.01933764,2435.3,2435.2,0.821]
[1751179485425,10.84029764,2435.3,2435.2,0.821]
[1751179496150,10.01933764,2435.3,2435.2,0.821]
[1751179497154,3.76333764,2435.3,2435.2,0.821]
[1751179505662,4.58429764,2435.3,2435.2,0.821]
[1751179507263,3.76333764,2435.3,2435.2,0.821]
[1751179510971,4.58429764,2435.3,2435.2,0.821]
[1751179512872,3.76333764,2435.3,2435.2,0.821]
[1751179513468,4.58429764,2435.3,2435.2,0.821]
[1751179513969,3.76333764,2435.3,2435.2,0.821]
[1751179514370,4.58429764,2435.3,2435.2,0.821]
[1751179514973,4.58432764,2435.3,2435.0,41.4641]
[1751179515162,0.95616509,2435.2,2435.1,0.82103]
[1751179515362,3.03393764,2435.2,2435.1,0.82103]